bitfinex-derivatives/quotes_ETHF0:USTF0_20250804
["timestamp","ask_amount","ask_price","bid_price","bid_amount"]
[1754324365260,2.1543,3662.4,3662.3,2.72776]
[1754324365565,21.5313,3662.4,3662.3,3.29916]
[1754324366466,2.1543,3662.1,3662.0,1.0408]
[1754324367263,21.5313,3662.1,3662.0,1.0408]
[1754324368362,22.1524,3662.1,3662.0,1.0408]
[1754324368668,22.1524,3662.1,3662.0,0.6189]
[1754324369072,22.1524,3662.1,3661.6,3.6297]
[1754324369073,2.1543,3661.7,3661.6,3.6297]
[1754324369364,0.4529,3662.1,3661.6,4.7706]
[1754324369563,1.5751,3662.1,3662.0,1.1229]
[1754324369869,1.5751,3662.1,3661.6,1.7418]
[1754324369870,2.1543,3661.7,3661.6,1.7418]
[1754324370168,19.376,3661.7,3661.6,2.7531]
[1754324370666,20.0758,3661.7,3661.6,2.7531]
[1754324370866,21.1079,3661.7,3661.6,2.7531]
[1754324371770,2.1543,3662.0,3661.9,0.7088]
[1754324371972,22.1504,3662.0,3661.9,0.4219]
[1754324372366,21.5293,3662.0,3661.9,1.0408]
[1754324372564,1.7319,3661.5,3661.4,3.2078]
[1754324372759,2.1543,3661.0,3660.9,0.98335132]
[1754324372966,21.5293,3661.0,3660.9,2.02415132]
[1754324373168,21.5293,3661.0,3660.9,3.73645132]
[1754324373467,20.0748,3661.0,3660.9,6.94425132]
[1754324373764,1.36528,3662.0,3660.9,6.94425132]
[1754324373765,1.36509,3662.5,3660.9,8.30990132]
[1754324373972,1.6532,3661.9,3661.0,0.6189]
[1754324374168,2.1543,3661.3,3661.2,1.58701]
[1754324374370,0.6998,3661.3,3661.2,3.29931]
[1754324374572,20.0738,3661.5,3661.4,3.29929]
[1754324374767,19.374,3661.7,3661.5,1.0113]
[1754324374973,19.374,3661.7,3661.6,2.17636]
[1754324375365,20.4081,3662.0,3661.9,1.60492]
[1754324375668,20.4081,3662.0,3661.9,2.17632]
[1754324375862,19.376,3662.0,3661.9,2.17632]
[1754324376173,20.4081,3662.0,3661.9,1.16502]
[1754324377866,20.4081,3662.0,3661.9,0.6189]
[1754324378466,21.5303,3662.0,3661.9,1.0408]
[1754324378671,0.6998,3662.0,3661.9,2.7531]
[1754324378868,20.0738,3662.0,3661.9,2.7531]
[1754324379176,2.1962,3661.9,3661.8,0.54612]
[1754324379473,2.7754,3661.8,3661.7,1.16503]
[1754324379672,2.7754,3661.8,3661.7,0.6189]
[1754324379974,2.7754,3661.8,3661.6,0.54615]
[1754324379975,2.7754,3661.7,3661.6,0.54615]
[1754324380170,22.1494,3661.7,3661.6,1.16605]
[1754324380370,22.1494,3661.7,3661.6,1.56875]
[1754324380772,21.5283,3661.7,3661.6,1.56875]
[1754324380972,19.374,3661.7,3661.6,3.25655]
[1754324381372,20.6315,3661.7,3661.6,3.25655]
[1754324381563,21.0993,3661.7,3661.6,3.25655]
[1754324382065,21.0993,3661.7,3661.6,0.54615]
[1754324382066,21.5151,3661.7,3661.6,0.54615]
[1754324382265,22.1017,3661.7,3661.6,0.54615]
[1754324382471,5.3489,3662.1,3662.0,1.5687]
[1754324382670,19.373,3662.1,3662.0,3.2565]
[1754324382874,1.6733,3662.5,3662.4,0.94873]
[1754324383072,1.6733,3662.5,3661.7,3.2078]
[1754324383073,3.2078,3663.0,3662.8,0.54598]
[1754324383374,4.2391,3663.0,3662.9,0.9906]
[1754324383574,23.6121,3663.0,3662.9,1.6105]
[1754324384476,0.5635,3663.4,3663.3,0.5547]
[1754324384676,21.10433594,3663.4,3663.3,1.6105]
[1754324384877,0.54591,3663.3,3662.9,4.18966]
[1754324385079,0.54593,3663.2,3663.0,0.6199]
[1754324385273,1.0313,3663.0,3662.9,0.6199]
[1754324385469,1.6179,3663.0,3662.9,0.6199]
[1754324385669,0.5635,3663.0,3662.9,1.6105]
[1754324385871,1.0313,3662.8,3662.7,0.6199]
[1754324386372,1.0313,3662.8,3662.5,0.6199]
[1754324386577,0.70112675,3662.9,3662.8,0.54598]
[1754324386773,0.5635,3662.9,3662.8,2.15648]
[1754324387075,19.371,3663.0,3662.8,2.15648]
[1754324387277,19.371,3663.0,3662.8,0.54598]
[1754324387475,20.4023,3663.0,3662.9,1.6105]
[1754324388078,19.9345,3663.0,3662.9,1.6105]
[1754324388372,1.0313,3663.3,3662.9,1.6105]
[1754324388572,20.4003,3663.3,3663.2,1.6105]
[1754324388775,21.10149526,3663.3,3663.2,0.6199]
[1754324389078,20.07019526,3663.3,3663.2,1.6105]
[1754324389576,0.70119526,3663.3,3663.2,4.8183]
[1754324389771,0.70119526,3663.7,3663.6,2.15636]
[1754324390166,1.26469526,3663.7,3663.6,1.60166]
[1754324390372,0.70119526,3663.7,3663.6,5.36416]
[1754324390574,1.44676844,3663.9,3663.7,1.6105]
[1754324390575,0.70119526,3663.8,3663.7,1.6105]
[1754324390975,0.70119526,3663.9,3663.8,0.54583]
[1754324391280,1.26469526,3663.9,3663.8,0.54583]
[1754324391581,1.0313,3663.9,3663.8,0.54583]
[1754324391774,1.73249526,3663.9,3663.8,1.60163]
[1754324391973,0.70119526,3664.0,3663.9,0.6199]
[1754324392177,0.70119526,3664.1,3664.0,2.1563]
[1754324392575,1.26469526,3664.1,3664.0,5.3641]
[1754324393274,2.84229526,3664.1,3664.0,5.5219]
[1754324393470,3.42889526,3664.1,3663.9,0.54581]
[1754324393672,3.42889526,3664.0,3663.9,1.16571]
[1754324393873,3.42889526,3664.0,3663.9,1.56841]
[1754324394573,2.84229526,3664.0,3663.9,1.56841]
[1754324395273,1.95869526,3664.0,3663.9,3.25621]
[1754324395479,2.1411,3664.0,3663.9,3.25621]
[1754324396989,0.4678,3664.6,3664.5,0.54573]
[1754324397287,0.7679,3664.6,3664.5,3.25613]
[1754324397484,0.70295075,3664.6,3664.5,3.25613]
[1754324397788,1.26645075,3664.9,3664.8,3.25608]
[1754324398093,2.42825075,3664.9,3664.8,3.25608]
[1754324398389,1.00305075,3664.9,3664.8,3.25608]
[1754324398586,1.7253,3664.9,3664.8,3.25608]
[1754324398986,0.70295075,3665.2,3665.1,3.25604]
[1754324399478,2.37625075,3665.5,3665.4,0.94829]
[1754324399681,2.84405075,3665.5,3665.4,1.16549]
[1754324399877,3.43065075,3665.5,3665.4,0.54559]
[1754324400576,0.5635,3665.4,3665.3,0.5456]
[1754324400782,3.27329,3665.4,3665.2,0.54562]
[1754324400984,2.7277,3665.3,3665.2,0.54562]
[1754324401186,2.7277,3665.2,3665.0,0.54565]
[1754324401391,2.7277,3665.1,3665.0,0.54565]
[1754324402687,0.54565,3665.0,3664.8,0.6199]
[1754324402887,2.1411,3664.6,3664.5,1.56833]
[1754324403188,22.0787,3664.6,3664.5,0.54573]
[1754324403986,21.4921,3664.6,3664.5,1.56833]
[1754324404296,19.351,3664.6,3664.5,3.25613]
[1754324404587,1.0313,3665.1,3665.0,3.25605]
[1754324404588,0.3001,3665.1,3665.0,3.25605]
[1754324404783,3.90806128,3666.2,3665.8,0.4359]
[1754324404984,19.35,3666.1,3666.0,0.6199]
[1754324405181,0.4678,3666.1,3666.0,0.6199]
[1754324405389,19.8178,3666.1,3666.0,0.6199]
[1754324405582,19.35,3666.1,3666.0,4.8183]
[1754324405984,19.349,3666.5,3666.2,0.6199]
[1754324406183,19.349,3666.5,3666.4,1.6105]
[1754324406389,19.9125,3666.5,3666.4,1.6105]
[1754324406588,20.3803,3666.5,3666.4,1.0558]
[1754324406899,19.9125,3666.5,3666.4,1.6105]
[1754324407186,0.54545,3666.4,3666.1,1.16538]
[1754324407387,0.54545,3666.4,3666.3,0.6199]
[1754324407388,1.0313,3666.4,3666.3,0.6199]
[1754324408881,20.48104,3666.5,3666.0,3.8277]
[1754324408882,0.4678,3666.2,3666.0,3.8277]
[1754324409090,1.0313,3666.1,3666.0,0.6199]
[1754324409289,1.0313,3666.1,3665.6,4.18926]
[1754324409290,1.0313,3665.9,3665.6,3.6437]
[1754324409586,19.344,3666.1,3666.0,3.2078]
[1754324409891,20.3753,3666.1,3666.0,3.8277]
[1754324410087,20.9661,3666.1,3666.0,3.2078]
[1754324410679,19.344,3666.1,3665.5,0.4359]
[1754324410880,1.13632,3665.9,3665.7,0.5998]
[1754324411091,1.0572,3665.8,3665.7,0.5998]
[1754324411392,0.594,3665.8,3665.7,0.9832]
[1754324411591,1.0572,3665.8,3665.7,0.9832]
[1754324411787,1.0572,3665.8,3665.7,0.45]
[1754324411980,0.54558,3665.5,3665.4,3.2078]
[1754324412187,1.0572,3665.2,3665.1,0.45]
[1754324412491,1.0572,3665.2,3665.1,0.9832]
[1754324412492,0.594,3665.2,3665.1,0.9832]
[1754324412689,1.60284,3665.2,3665.0,3.2078]
[1754324412989,0.594,3664.9,3664.8,1.52888]
[1754324413191,1.0572,3664.9,3664.8,2.12868]
[1754324413591,1.60288,3664.8,3664.7,0.5998]
[1754324413781,0.4632,3664.7,3664.2,4.2576]
[1754324413987,0.5908,3664.8,3664.6,0.5457]
[1754324414291,0.5908,3664.8,3664.7,0.5998]
[1754324414491,19.34,3665.0,3664.7,0.54569]
[1754324414686,1.0572,3664.9,3664.8,1.14547]
[1754324414886,19.34,3665.0,3664.8,2.12867]
[1754324415088,19.34,3665.0,3664.9,1.583]
[1754324415291,1.0572,3665.1,3665.0,0.54565]
[1754324415489,1.0572,3665.0,3664.9,0.54566]
[1754324415889,1.0572,3665.0,3664.8,0.54568]
[1754324416099,1.0572,3664.9,3664.8,2.12868]
[1754324416489,0.594,3664.9,3664.8,2.12868]
[1754324416692,3.2078,3665.5,3665.3,0.54561]
[1754324416888,19.338,3665.4,3665.3,1.59541]
[1754324417294,20.3952,3665.4,3665.3,1.14541]
[1754324418590,20.986,3665.4,3665.3,1.14541]
[1754324418990,20.3952,3665.4,3665.3,1.14541]
[1754324419391,20.3932,3665.4,3665.3,1.14541]
[1754324419586,20.3932,3665.4,3665.3,0.54561]
[1754324419792,20.3932,3665.4,3665.3,1.14541]
[1754324420095,1.648,3665.0,3664.9,0.5998]
[1754324420291,0.4632,3664.9,3664.8,0.54567]
[1754324420488,20.3932,3664.9,3664.8,1.14547]
[1754324420690,20.3932,3664.9,3664.6,0.54571]
[1754324420691,19.336,3664.9,3664.6,0.54571]
[1754324420892,19.336,3664.9,3664.6,1.14551]
[1754324421091,1.0572,3664.7,3664.6,1.14551]
[1754324421291,1.0572,3664.7,3664.6,2.12871]
[1754324422489,20.3932,3664.9,3664.8,2.12868]
[1754324423100,20.3932,3664.9,3664.8,0.5998]
[1754324423288,1.6839,3664.7,3664.6,1.1455]
[1754324423488,1.34351,3664.6,3664.5,3.2078]
[1754324423688,1.0931,3664.4,3664.3,0.3696]
[1754324423890,2.7411,3664.4,3664.3,0.3696]
[1754324424096,1.0931,3663.8,3663.7,3.75364]
[1754324424398,2.1503,3663.8,3663.7,3.8076]
[1754324424602,2.1503,3663.8,3663.7,4.1772]
[1754324424989,2.1503,3663.8,3663.7,4.6272]
[1754324425400,2.1503,3663.8,3663.7,4.1772]
[1754324425702,2.1503,3663.8,3663.7,0.9694]
[1754324425996,2.1503,3663.8,3663.7,0.5998]
[1754324425997,1.0572,3663.8,3663.7,0.5998]
[1754324426502,1.648,3663.2,3663.1,0.5998]
[1754324426798,20.3912,3663.2,3663.1,0.5998]
[1754324427198,20.3912,3663.2,3663.1,1.0498]
[1754324428399,19.334,3663.2,3663.1,2.6241]
[1754324428790,19.928,3663.2,3663.1,2.6241]
[1754324428992,19.928,3663.2,3663.1,0.9694]
[1754324428993,21.4843,3663.2,3663.1,0.9694]
[1754324429192,2.1503,3662.9,3662.8,3.8076]
[1754324429393,2.1503,3662.9,3662.8,4.6272]
[1754324429592,21.4853,3662.9,3662.8,4.6272]
[1754324429994,1.0572,3662.8,3662.4,3.2078]
[1754324430194,0.54598,3662.8,3662.3,0.54605]
[1754324430395,22.5428,3662.9,3661.9,3.2078]
[1754324430396,0.54609,3662.1,3661.9,3.2078]
[1754324430691,1.648,3662.0,3661.4,4.35378]
[1754324430894,1.0572,3661.8,3661.6,0.54616]
[1754324431198,1.0572,3661.6,3661.5,0.54617]
[1754324431397,20.3912,3661.6,3661.5,0.45]
[1754324431701,20.3912,3661.6,3661.5,1.0498]
[1754324431890,19.337,3661.6,3661.5,1.0455]
[1754324432096,19.337,3661.6,3661.5,2.19148]
[1754324432799,0.54609,3662.2,3661.7,0.54613]
[1754324432994,19.337,3662.1,3661.8,0.54612]
[1754324433202,0.4632,3662.2,3661.4,3.2078]
[1754324433203,1.0572,3662.2,3661.6,1.6453]
[1754324433398,1.0572,3662.2,3662.1,0.54609]
[1754324433604,19.336,3662.4,3662.2,0.54607]
[1754324433903,19.93,3662.4,3662.3,1.6453]
[1754324434105,20.3932,3662.4,3662.3,1.6453]
[1754324434294,19.336,3662.4,3662.3,1.6453]
[1754324434703,19.93,3662.4,3662.3,1.6453]
[1754324434903,1.0572,3662.8,3662.7,0.546]
[1754324435100,1.0572,3662.8,3662.7,2.1913]
[1754324435101,20.3952,3662.8,3662.7,2.1913]
[1754324435398,0.594,3663.2,3663.1,0.5955]
[1754324435703,19.931,3663.2,3663.1,1.6453]
[1754324436704,43.0918,3663.8,3663.5,0.5998]
[1754324436899,19.931,3663.7,3663.6,1.6453]
[1754324437100,20.3942,3663.7,3663.6,1.0498]
[1754324437405,20.3942,3663.7,3663.6,0.5998]
[1754324437705,20.3942,3663.7,3663.6,1.0498]
[1754324438299,1.0572,3663.7,3663.6,1.0498]
[1754324438803,1.0572,3663.7,3663.6,1.6453]
[1754324440105,1.0504,3663.6,3663.3,1.0275]
[1754324440299,1.0504,3663.5,3663.4,0.5849]
[1754324440505,1.0272,3663.5,3663.4,0.5849]
[1754324440704,1.6088,3663.5,3663.4,0.5849]
[1754324441108,1.0504,3663.5,3663.4,0.5849]
[1754324441407,1.0504,3663.5,3663.4,1.5949]
[1754324441901,3.7662,3663.8,3663.2,0.5849]
[1754324441902,1.0504,3663.4,3663.2,0.5849]
[1754324442105,1.6088,3663.2,3662.9,0.5849]
[1754324442308,1.0504,3663.1,3663.0,0.54594]
[1754324442710,1.0504,3663.1,3663.0,0.98854]
[1754324442907,1.0504,3663.1,3663.0,1.57344]
[1754324443502,1.0504,3663.1,3662.2,4.57298]
[1754324443814,0.54594,3663.1,3662.8,1.13087]
[1754324444105,1.0504,3662.9,3662.8,0.5849]
[1754324444311,0.54598,3662.8,3662.5,1.13092]
[1754324444500,19.332,3662.9,3662.7,0.98859]
[1754324444705,0.5816,3663.1,3663.0,1.55595]
[1754324445109,1.0504,3663.1,3663.0,2.14085]
[1754324447006,0.5816,3663.1,3663.0,2.14085]
[1754324447212,19.332,3663.2,3663.0,2.14085]
[1754324447507,0.5816,3663.5,3663.2,0.5849]
[1754324447709,0.5816,3663.5,3663.1,1.36485]
[1754324447710,19.87688,3663.5,3663.3,1.1308]
[1754324448009,19.331,3663.5,3663.3,1.5559]
[1754324448212,3.2078,3663.8,3663.4,2.0744]
[1754324448403,4.8987,3663.8,3663.7,3.20515]
[1754324448610,2.23667,3664.2,3664.1,0.4024]
[1754324448811,22.59387,3664.2,3664.1,0.9873]
[1754324449012,21.0209,3664.2,3664.1,2.0919]
[1754324449311,21.16267,3664.2,3664.1,2.6593]
[1754324449513,21.4897,3664.2,3664.1,2.6593]
[1754324449815,22.03547,3664.2,3664.1,2.0919]
[1754324450908,0.5458,3664.1,3663.9,0.54581]
[1754324451208,1.6909,3663.7,3663.6,1.97575]
[1754324451415,1.6909,3663.7,3663.6,1.53315]
[1754324451614,2.1597,3663.7,3663.6,1.82605]
[1754324451819,2.1597,3663.7,3663.6,0.9873]
[1754324452010,2.7181,3663.7,3663.6,0.9873]
[1754324453216,2.1597,3663.7,3663.6,0.9873]
[1754324453414,2.1597,3663.7,3663.6,1.7228]
[1754324454208,2.1597,3663.7,3663.6,1.2802]
[1754324454712,2.1597,3663.7,3663.6,1.7228]
[1754324454917,2.70556,3663.7,3663.5,3.2078]
[1754324455115,1.4544,3663.4,3663.3,0.5849]
[1754324455324,0.9809,3663.4,3663.3,3.2052]
[1754324455817,0.8681,3663.7,3663.6,0.54586]
[1754324456118,2.1597,3663.7,3663.6,1.7228]
[1754324456920,21.0837,3663.8,3663.7,3.20515]
[1754324457121,21.4877,3663.8,3663.7,3.20515]
[1754324457519,20.6149,3663.8,3663.7,3.20515]
[1754324459117,1.2869,3663.8,3663.7,3.20515]
[1754324459321,20.3029,3664.0,3663.9,3.20512]
[1754324459521,21.0777,3664.0,3663.9,3.20512]
[1754324459815,0.306,3663.7,3663.6,1.40616]
[1754324460018,2.1597,3663.7,3663.6,1.68376]
[1754324460218,2.1597,3663.7,3663.6,2.05286]
[1754324460415,0.71,3663.3,3663.2,1.82612]
[1754324460617,2.1597,3663.3,3663.2,1.82612]
[1754324461020,2.7181,3663.3,3663.2,0.5849]
[1754324461317,2.7181,3663.2,3663.1,3.75373]
[1754324461516,2.1597,3663.2,3663.1,6.41303]
[1754324461714,0.33393,3664.3,3663.4,0.5674]
[1754324461920,1.36112267,3665.7,3665.5,0.54558]
[1754324462122,0.5584,3666.1,3666.0,0.5455]
[1754324462324,1.26098483,3666.1,3666.0,3.7533]
[1754324462519,0.5584,3666.1,3666.0,3.7533]
[1754324463827,1.14,3666.1,3666.0,3.7533]
[1754324464124,1.14,3666.1,3666.0,3.2078]
[1754324465626,1.14,3666.1,3666.0,3.54819782]
[1754324467919,0.5584,3666.1,3666.0,3.54819782]
[1754324468124,1.14,3666.1,3666.0,3.54819782]
[1754324468520,1.14,3666.1,3666.0,0.34039782]
[1754324469630,0.54553,3665.9,3665.6,3.75336]
[1754324469832,1.14,3665.8,3665.6,3.2078]
[1754324470130,1.14,3665.7,3665.6,3.2078]
[1754324471423,0.4485,3666.0,3665.6,3.2078]
[1754324471631,1.1864,3665.8,3665.7,0.56785]
[1754324471830,0.5983,3665.8,3665.7,0.56785]
[1754324472030,1.0468,3665.8,3665.7,0.56785]
[1754324472226,0.5983,3666.3,3665.7,1.36387]
[1754324472432,0.5881,3666.2,3666.1,0.56779]
[1754324472931,0.5881,3666.2,3666.1,0.93049]
[1754324473224,1.6349,3666.7,3666.6,0.54542]
[1754324473425,1.0,3670.0,3666.6,0.54542]
[1754324473426,2.1864,3667.0,3666.9,0.56767]
[1754324473623,2.1864,3667.0,3666.8,0.54538]
[1754324473825,0.5881,3666.9,3666.8,0.54538]
[1754324474127,0.5881,3666.9,3666.8,0.56768]
[1754324474528,1.1864,3666.9,3666.8,0.56768]
[1754324475132,1.1864,3666.9,3666.8,0.54538]
[1754324475328,1.6349,3666.9,3666.8,0.54538]
[1754324475523,1.6349,3666.9,3666.8,0.56768]
[1754324475725,1.0,3667.0,3666.9,0.385]
[1754324475927,1.0,3667.0,3666.9,0.63369381]
[1754324476530,2.1864,3667.0,3666.9,0.27099381]
[1754324476935,1.0,3667.0,3666.9,0.63369381]
[1754324477129,2.6349,3667.0,3666.9,0.24869381]
[1754324479530,1.4485,3667.0,3666.8,0.54537]
[1754324479729,1.1864,3666.9,3666.8,0.56767]
[1754324479937,1.0,3667.0,3666.9,0.385]
[1754324480530,0.5881,3667.7,3667.6,0.54527]
[1754324480729,58.59,3668.5,3668.3,0.54515]
[1754324481031,0.4485,3668.7,3668.4,0.54514]
[1754324481232,3.2078,3669.2,3668.5,0.54512]
[1754324481233,0.54507,3669.0,3668.5,0.54512]
[1754324481428,0.5881,3668.7,3668.6,0.54511]
[1754324481626,1.6349,3668.7,3668.6,3.75291]
[1754324481831,1.0468,3669.1,3669.0,0.54506]
[1754324482137,1.6349,3669.1,3669.0,3.75286]
[1754324482534,0.5881,3669.1,3669.0,3.75886]
[1754324482742,1.6349,3669.5,3669.3,0.545]
[1754324482942,1.1864,3669.4,3669.0,3.2078]
[1754324483137,1.6349,3669.2,3669.0,3.75286]
[1754324483336,1.1864,3669.2,3668.6,3.2078]
[1754324483538,0.5983,3669.0,3668.6,3.2078]
[1754324483839,0.4485,3668.8,3668.6,3.2078]
[1754324484037,1.1864,3668.7,3668.6,3.75292]
[1754324484438,1.6349,3668.7,3668.6,3.2078]
[1754324484837,1.6349,3668.6,3668.0,3.2078]
[1754324485037,1.6349,3668.4,3668.1,0.22949618]
[1754324485242,0.54513,3668.6,3668.2,0.54518]
[1754324485444,0.54513,3668.6,3668.1,0.54518]
[1754324485643,0.54513,3668.6,3668.2,0.54516]
[1754324485942,1.1864,3668.4,3668.2,0.54516]
[1754324486144,1.1864,3668.2,3668.1,0.22949618]
[1754324486642,0.54517,3668.3,3668.1,0.22949618]
[1754324486939,1.0468,3668.4,3668.2,0.77466618]
[1754324487244,1.6349,3668.2,3668.1,0.22949618]
[1754324487444,1.6349,3668.2,3668.0,3.753]
[1754324487642,1.1864,3668.1,3668.0,3.753]
[1754324488046,1.6349,3668.1,3668.0,3.753]
[1754324488446,1.14342,3668.6,3668.0,3.2078]
[1754324488641,0.54513,3668.6,3668.2,0.54517]
[1754324488941,1.1864,3668.4,3668.1,0.54518]
[1754324489138,0.5881,3668.2,3668.1,0.54519]
[1754324489338,0.5881,3668.2,3668.1,0.55119]
[1754324489949,1.6349,3668.2,3668.1,0.54519]
[1754324490145,2.40949,3668.9,3668.0,3.2078]
[1754324490346,2.40949,3668.9,3668.0,3.753]
[1754324490347,1.0468,3668.1,3668.0,3.753]
[1754324490542,1.6349,3668.1,3668.0,3.753]
[1754324490747,0.5881,3668.6,3668.0,3.42706081]
[1754324490947,0.4485,3668.4,3668.2,0.54518]
[1754324491143,1.1864,3668.3,3668.2,0.55118]
[1754324491549,0.54514,3668.5,3668.1,0.54518]
[1754324491747,0.4485,3668.2,3668.1,0.54518]
[1754324491948,1.6349,3668.2,3668.1,0.75844081]
[1754324492550,1.6349,3668.2,3668.1,0.21326081]
[1754324493548,4.57043,3669.1,3668.1,0.21326081]
[1754324493549,1.13323,3668.6,3668.3,0.54515]
[1754324493743,1.6349,3668.5,3668.4,3.2078]
[1754324494649,1.6349,3668.5,3668.3,0.54515]
[1754324494846,1.6349,3668.6,3668.4,0.54513]
[1754324495043,1.6349,3669.1,3669.0,0.54505]
[1754324495248,3.2078,3669.4,3668.8,0.54509]
[1754324495438,0.54501,3669.3,3669.0,0.54505]
[1754324495639,3.75281,3669.4,3669.2,0.54502]
[1754324495843,0.54499,3669.5,3669.3,0.545]
[1754324496045,0.4485,3669.4,3669.3,0.545]
[1754324496449,1.6349,3669.4,3669.3,0.545]
[1754324496641,2.17991,3669.4,3669.2,3.75282]
[1754324496846,1.6349,3669.3,3669.2,3.75282]
[1754324497651,1.6349,3669.3,3669.2,3.96672672]
[1754324497842,1.6349,3669.3,3669.2,3.75282]
[1754324498344,1.6349,3669.3,3669.2,3.96672672]
[1754324498652,1.6349,3669.3,3669.2,3.75282]
[1754324498844,1.0,3670.0,3669.8,0.54494]
[1754324499147,0.02814577,3670.0,3669.9,1.5845]
[1754324499443,0.02814577,3670.0,3669.9,1.0056]
[1754324500053,0.02814577,3670.0,3669.9,1.5845]
[1754324500758,0.02814577,3670.0,3669.9,1.79823977]
[1754324501452,5.77e-06,3670.0,3669.9,1.79823977]
[1754324502354,0.54475,3671.1,3670.9,0.54476]
[1754324502355,1.0144,3671.0,3670.9,0.54476]
[1754324502554,1.5796,3671.0,3670.9,3.75256]
[1754324503150,1.5796,3671.0,3670.9,3.2078]
[1754324503758,1.1544,3671.0,3670.9,4.2139]
[1754324504052,1.5796,3671.0,3670.9,3.2078]
[1754324504252,0.5892,3671.5,3670.9,5.57584]
[1754324504455,1.5796,3671.5,3671.4,0.5447]
[1754324504649,0.5892,3671.4,3671.3,3.75251]
[1754324504857,1.5796,3671.4,3671.3,3.75251]
[1754324505263,1.0144,3671.9,3671.3,4.2139]
[1754324505461,1.5796,3671.5,3671.3,3.2078]
[1754324505657,1.5796,3671.4,3671.3,3.2078]
[1754324505857,0.5652,3671.4,3671.3,3.2078]
[1754324506160,1.5796,3671.4,3671.3,3.2078]
[1754324507861,0.5652,3671.6,3671.4,0.54469]
[1754324508062,1.0144,3671.5,3671.4,0.54469]
[1754324508262,1.5796,3671.5,3671.4,0.54469]
[1754324508462,0.5652,3671.5,3671.4,1.55079]
[1754324508757,1.1544,3671.8,3671.7,1.55076]
[1754324508960,0.5652,3671.8,3671.7,4.75856]
[1754324509159,0.5652,3671.8,3671.7,5.31866]
[1754324509755,1.5796,3671.8,3671.7,4.19856]
[1754324510058,1.5796,3671.8,3671.7,3.75246]
[1754324510264,2.12424,3671.8,3671.7,3.2078]
[1754324510664,1.5796,3671.8,3671.7,3.2078]
[1754324511356,1.0144,3671.8,3671.7,3.2078]
[1754324511660,0.54451,3672.7,3672.4,0.54454]
[1754324511860,4.797,3673.0,3672.4,0.54454]
[1754324511861,1.0144,3672.5,3672.4,0.54454]
[1754324512058,1.0,3673.0,3672.4,0.54454]
[1754324512263,1.0,3673.0,3672.1,3.2078]
[1754324512264,1.5796,3672.9,3672.1,3.2078]
[1754324512463,0.54458,3672.3,3672.1,3.2078]
[1754324512770,1.0144,3672.2,3672.1,3.2078]
[1754324512964,1.5796,3672.2,3672.1,3.2078]
[1754324514364,0.4252,3672.3,3672.2,0.54458]
[1754324514566,1.5796,3672.3,3672.1,3.2078]
[1754324514759,1.5796,3672.2,3672.1,3.2078]
[1754324515361,1.5796,3672.2,3672.1,3.6539]
[1754324515564,0.5892,3672.6,3672.2,0.56]
[1754324515765,0.54453,3672.6,3672.4,0.54454]
[1754324515963,1.54447,3673.0,3672.8,0.54448]
[1754324516163,1.0,3673.0,3672.8,0.54448]
[1754324516357,0.54448,3672.9,3672.7,0.5445]
[1754324516560,0.5892,3672.8,3672.7,0.5445]
[1754324516761,1.5796,3672.8,3672.7,0.5445]
[1754324517164,1.5796,3672.8,3672.7,0.9906]
[1754324517364,1.1544,3672.8,3672.7,1.5506]
[1754324517766,1.5796,3672.8,3672.7,1.0061]
[1754324517962,1.5796,3672.8,3672.6,0.54451]
[1754324517963,1.5796,3672.7,3672.6,0.54451]
[1754324518363,1.1544,3672.7,3672.6,1.55061]
[1754324518669,1.5652,3673.0,3672.9,1.55058]
[1754324518860,1.5652,3673.0,3672.9,4.2139]
[1754324519065,2.5796,3673.0,3672.9,4.2139]
[1754324519566,2.5796,3673.0,3672.9,3.2078]
[1754324519771,2.5796,3673.0,3672.5,3.2078]
[1754324519772,2.12412,3672.6,3672.5,3.2078]
[1754324520270,1.5796,3672.6,3672.5,3.2078]
[1754324520666,0.54452,3672.7,3672.0,0.7572247]
[1754324520667,1.5796,3672.1,3672.0,0.7572247]
[1754324520859,2.12421,3672.0,3671.9,3.2078]
[1754324521170,2.12427,3671.6,3671.5,0.2126247]
[1754324521364,2.12432,3671.3,3671.2,0.2126247]
[1754324521567,2.12439,3670.8,3670.7,0.2126247]
[1754324521768,0.54484,3670.5,3670.4,0.2126247]
[1754324521961,2.12444,3670.5,3670.4,0.2126247]
[1754324522163,1.36202,3670.7,3670.0,0.2126797]
[1754324522363,2.12449,3670.2,3670.1,0.2126797]
[1754324522562,2.12449,3670.2,3669.9,3.2078]
[1754324522563,1.5796,3670.2,3670.0,0.7575797]
[1754324522766,1.5796,3670.2,3669.9,3.75272]
[1754324522963,0.4252,3670.1,3669.9,4.19882]
[1754324523164,1.5796,3670.0,3669.9,3.6539]
[1754324523367,1.5796,3670.0,3669.9,3.75272]
[1754324523559,1.5796,3670.0,3669.9,3.6539]
[1754324523766,1.5796,3670.0,3669.9,4.2139]
[1754324523967,1.5796,3670.0,3669.9,3.2078]
[1754324524166,1.5796,3670.0,3669.9,3.75272]
[1754324524367,1.5796,3670.0,3669.9,3.2078]
[1754324524562,2.12451,3670.0,3669.9,3.2078]
[1754324524763,1.5796,3669.6,3669.5,3.2078]
[1754324524973,1.5796,3669.6,3669.5,3.4204797]
[1754324525169,1.5796,3669.6,3669.5,3.2078]